bitfinex-derivatives/quotes_BNBF0:USTF0_20250507
["timestamp","ask_amount","ask_price","bid_price","bid_amount"]
[1746645240688,1.26984021,600.4,599.66,2.689]
[1746645241289,1.26987285,600.39,599.66,2.689]
[1746645241586,1.26987285,600.38,599.66,2.689]
[1746645241791,1.26987285,600.37,599.66,2.689]
[1746645241989,2.28044507,600.36,599.66,2.689]
[1746645242190,1.26987285,600.35,599.66,2.689]
[1746645242390,2.28044507,600.34,599.66,2.689]
[1746645242584,2.28044507,600.33,599.66,2.689]
[1746645242786,1.26987285,600.32,599.66,2.689]
[1746645243088,2.28044507,600.31,599.66,2.689]
[1746645243291,1.26987285,600.3,599.66,2.689]
[1746645243491,2.28044507,600.29,599.66,2.689]
[1746645243687,1.26987285,600.28,599.66,2.689]
[1746645243890,2.27985738,600.27,599.66,2.689]
[1746645244090,1.26928516,600.26,599.66,2.689]
[1746645244389,1.26928516,600.25,599.66,2.689]
[1746645244590,2.27985738,600.24,599.66,2.689]
[1746645244789,1.26928516,600.23,599.66,2.689]
[1746645244985,2.28161457,600.22,599.66,2.689]
[1746645245185,1.01057222,600.21,599.66,2.689]
[1746645245389,1.01057222,600.21,599.07,1.06212447]
[1746645245587,1.01057222,600.21,599.11,1.06212447]
[1746645245787,1.01057222,600.2,599.11,1.06212447]
[1746645246191,1.01057222,600.2,599.13,0.33381736]
[1746645246391,1.01057222,600.19,599.13,0.33381736]
[1746645246696,1.01057222,600.18,599.13,0.33381736]
[1746645246891,1.01057222,600.17,599.13,0.33381736]
[1746645247098,0.33310016,600.42,599.13,0.33381736]
[1746645247296,1.27169862,600.41,599.13,0.33381736]
[1746645247495,1.27169862,600.4,599.13,0.33381736]
[1746645247797,1.27169862,600.39,599.14,1.021]
[1746645247996,1.27169862,600.38,599.14,1.021]
[1746645248195,1.27169862,600.37,599.16,0.33380065]
[1746645248392,2.28329114,600.36,599.16,0.33380065]
[1746645248690,2.28329114,600.35,599.16,0.33380065]
[1746645248897,1.27169862,600.34,599.16,2.45380065]
[1746645249098,1.27169862,600.33,599.16,2.45380065]
[1746645249295,1.27169862,600.32,599.16,3.51680065]
[1746645249496,1.27169862,600.31,599.16,3.51680065]
[1746645249796,2.28329114,600.3,599.16,3.51680065]
[1746645250099,2.28329114,600.29,599.16,3.51680065]
[1746645250395,2.28329114,600.28,599.16,3.51680065]
[1746645250594,1.27169862,600.27,599.16,3.51680065]
[1746645250793,1.27169862,600.26,599.16,3.51680065]
[1746645250995,2.28329114,600.25,599.16,3.51680065]
[1746645251195,1.27169862,600.24,599.16,3.51680065]
[1746645251394,1.27169862,600.23,599.16,3.51680065]
[1746645251590,2.28329114,600.22,599.16,3.51680065]
[1746645251792,1.27169862,600.21,599.16,3.51680065]
[1746645252099,0.33310016,600.42,599.16,3.51680065]
[1746645252298,1.27209557,600.41,599.16,3.51680065]
[1746645252498,1.27209557,600.4,599.16,3.51680065]
[1746645252691,2.28427078,600.39,599.16,3.51680065]
[1746645252890,1.27209557,600.38,599.16,3.51680065]
[1746645253096,1.27209557,600.37,599.16,3.51680065]
[1746645253295,1.27209557,600.36,599.16,3.51680065]
[1746645253494,1.27209557,600.35,599.16,3.51680065]
[1746645253698,1.27209557,600.34,599.16,3.51680065]
[1746645253998,1.27209557,600.33,599.16,3.51680065]
[1746645254198,2.28427078,600.32,599.16,3.51680065]
[1746645254399,1.27209557,600.31,599.16,3.51680065]
[1746645254598,1.27209557,600.3,599.16,3.51680065]
[1746645254795,1.27209557,600.29,599.16,3.51680065]
[1746645254994,1.01217521,600.3,599.16,3.51680065]
[1746645255194,1.27078466,600.29,599.16,3.51680065]
[1746645255395,1.27078466,600.28,599.16,3.51680065]
[1746645255595,1.27081073,600.27,599.16,3.51680065]
[1746645255797,2.28298386,600.26,599.16,3.51680065]
[1746645256100,1.01217521,600.25,599.16,3.51680065]
[1746645256500,1.01217521,600.24,599.16,3.51680065]
[1746645256900,1.01217521,600.23,599.16,3.51680065]
[1746645257100,1.01183437,600.22,599.16,3.51680065]
[1746645257400,1.01183437,600.21,599.16,3.51680065]
[1746645257799,1.01183926,600.2,599.16,3.51680065]
[1746645258099,0.33310016,600.42,599.16,3.51680065]
[1746645258295,1.01183822,600.41,599.16,3.51680065]
[1746645258600,2.28319295,600.4,599.16,3.51680065]
[1746645258800,1.27135473,600.39,599.16,3.51680065]
[1746645259098,2.28319295,600.38,599.16,3.51680065]
[1746645259300,2.28319295,600.37,599.16,3.51680065]
[1746645259497,2.28319295,600.36,599.16,3.51680065]
[1746645259697,2.28319295,600.35,599.16,3.51680065]
[1746645259895,1.27135473,600.34,599.16,3.51680065]
[1746645260095,2.28319295,600.33,599.16,3.51680065]
[1746645260299,1.27135473,600.32,599.16,3.51680065]
[1746645260501,2.28319295,600.31,599.16,3.51680065]
[1746645260700,1.27135473,600.3,599.16,3.51680065]
[1746645260895,1.27135473,600.29,599.16,3.51680065]
[1746645261100,1.01183822,600.28,599.16,3.51680065]
[1746645261296,1.01183822,600.27,599.16,3.51680065]
[1746645261495,1.01183822,600.26,599.16,3.51680065]
[1746645261699,1.01172061,600.25,599.16,3.51680065]
[1746645261899,0.33310016,600.42,599.26,1.06212447]
[1746645262201,2.28242843,600.41,599.27,0.33373938]
[1746645262402,2.28242843,600.4,599.27,0.33373938]
[1746645262602,1.27069697,600.39,599.27,0.33373938]
[1746645262799,1.27069697,600.38,599.27,0.33373938]
[1746645262999,1.27069697,600.37,599.27,0.33373938]
[1746645263196,2.28241275,600.36,599.27,0.33373938]
[1746645263397,1.27094338,600.35,599.27,0.33373938]
[1746645263599,2.28265916,600.34,599.27,0.33373938]
[1746645263796,1.01171578,600.34,599.27,0.33373938]
[1746645264100,1.01171578,600.33,599.27,0.33373938]
[1746645264296,1.01171578,600.32,599.27,0.33373938]
[1746645264497,1.01171578,600.31,599.34,1.06212447]
[1746645264898,1.01171578,600.3,599.34,1.06212447]
[1746645265100,0.33310016,600.42,599.34,1.06212447]
[1746645265300,1.27094451,600.41,599.34,1.06212447]
[1746645265497,2.28250082,600.4,599.34,1.06212447]
[1746645265696,2.28250082,600.39,599.34,1.06212447]
[1746645265998,2.28250082,600.38,599.34,1.06212447]
[1746645266202,0.33310016,600.42,599.34,1.06212447]
[1746645266403,0.33310016,600.42,599.27,1.39586385]
[1746645266799,0.28998429,600.63,599.27,1.39586385]
[1746645267000,2.28259056,600.62,599.27,1.39586385]
[1746645267300,1.27097819,600.61,599.27,1.39586385]
[1746645267500,1.01161237,600.62,599.27,1.39586385]
[1746645267501,2.28259056,600.6,599.27,1.39586385]
[1746645267709,1.27097819,600.59,599.27,1.39586385]
[1746645268006,2.28259056,600.58,599.27,0.33373938]
[1746645268304,1.27097819,600.57,599.27,0.33373938]
[1746645268504,1.27097819,600.56,599.27,0.33373938]
[1746645268700,1.27097819,600.55,599.27,0.33373938]
[1746645268905,1.27097819,600.54,599.27,0.33373938]
[1746645269104,1.27097819,600.53,599.27,0.33373938]
[1746645269300,1.27097819,600.52,599.27,0.33373938]
[1746645269499,2.28259056,600.51,599.27,0.33373938]
[1746645269799,1.27097819,600.5,599.27,0.33373938]
[1746645270001,1.27097819,600.49,599.27,0.33373938]
[1746645270200,1.27048453,600.48,599.27,0.33373938]
[1746645270404,1.27048453,600.47,599.27,0.33373938]
[1746645270604,1.27048453,600.46,599.27,0.33373938]
[1746645270802,2.2820969,600.45,599.27,0.33373938]
[1746645270999,1.27048453,600.44,599.27,0.33373938]
[1746645271202,1.27048453,600.43,599.27,0.33373938]
[1746645271406,1.01161237,600.42,599.27,0.33373938]
[1746645272007,1.01161237,600.41,599.27,0.33373938]
[1746645272211,1.01161237,600.4,599.27,0.33373938]
[1746645272507,1.26985112,600.39,599.27,0.33373938]
[1746645272812,2.28146349,600.38,599.27,0.33373938]
[1746645273009,1.01161237,600.38,599.27,0.33373938]
[1746645273208,0.29002054,600.63,599.27,0.33373938]
[1746645274512,0.29002054,600.63,599.27,1.29373938]
[1746645274711,0.62300424,600.63,599.27,1.29373938]
[1746645274905,0.3329837,600.63,599.27,1.29373938]
[1746645275211,0.29001813,600.62,599.27,1.29373938]
[1746645276714,0.29001813,600.62,599.27,2.00973938]
[1746645278014,0.3329837,600.63,599.27,2.00973938]
[1746645278209,0.29001813,600.61,599.27,2.00973938]
[1746645279714,0.29001813,600.61,599.27,3.05773938]
[1746645281011,0.3329837,600.63,599.27,3.05773938]
[1746645281414,0.28985749,600.62,599.27,3.05773938]
[1746645283914,0.3329837,600.63,599.27,3.05773938]
[1746645284117,0.3329837,600.63,599.34,1.06212447]
[1746645284318,0.28986232,600.62,599.34,1.06212447]
[1746645286321,0.28986232,600.62,599.35,0.33369483]
[1746645287017,0.3329837,600.63,599.35,0.33369483]
[1746645287322,0.29001813,600.61,599.35,0.33369483]
[1746645288219,0.29001813,600.61,599.36,0.921]
[1746645288418,0.29001813,600.61,599.37,0.3336837]
[1746645289922,0.3329837,600.63,599.37,0.3336837]
[1746645290424,0.28985145,600.62,599.37,0.3336837]
[1746645292925,0.3329837,600.63,599.37,0.3336837]
[1746645293225,0.29000725,600.61,599.37,0.3336837]
[1746645298924,0.3329837,600.63,599.37,0.3336837]
[1746645299125,0.3329837,600.63,599.38,0.922]
[1746645299329,0.29004109,600.6,599.38,0.922]
[1746645301535,0.3329837,600.63,599.38,0.922]
[1746645301730,0.29003867,600.59,599.38,0.922]
[1746645302425,0.29003867,600.59,599.39,0.847]
[1746645303131,0.29003867,600.59,599.4,1.031]
[1746645304930,0.3329837,600.63,599.4,1.031]
[1746645305225,0.29005076,600.58,599.4,1.031]
[1746645313936,0.3329837,600.63,599.4,1.031]
[1746645314237,0.29002175,600.57,599.4,1.031]
[1746645317139,0.3329837,600.63,599.4,1.031]
[1746645317341,0.29002175,600.56,599.4,1.031]
[1746645319943,0.3329837,600.63,599.4,1.031]
[1746645320242,0.29002175,600.55,599.4,1.031]
[1746645320440,0.3329837,600.63,599.4,1.031]
[1746645320837,0.29002175,600.54,599.4,1.031]
[1746645321043,0.3329837,600.63,599.4,1.031]
[1746645321244,0.29002175,600.53,599.4,1.031]
[1746645321544,0.3329837,600.63,599.4,1.031]
[1746645321844,0.29002175,600.52,599.4,1.031]
[1746645322040,0.3329837,600.63,599.4,1.031]
[1746645322445,0.29002175,600.51,599.4,1.031]
[1746645322639,0.3329837,600.63,599.4,1.031]
[1746645322845,0.29002175,600.5,599.4,1.031]
[1746645323146,0.3329837,600.63,599.4,1.031]
[1746645323445,0.29002175,600.49,599.4,1.031]
[1746645323647,0.3329837,600.63,599.4,1.031]
[1746645323945,0.29002175,600.48,599.4,1.031]
[1746645324144,0.3329837,600.63,599.4,1.031]
[1746645324446,0.29002175,600.47,599.4,1.031]
[1746645324746,0.3329837,600.63,599.4,1.031]
[1746645324944,0.29002417,600.46,599.4,1.031]
[1746645325245,0.3329837,600.63,599.4,1.031]
[1746645325446,0.29003142,600.45,599.4,1.031]
[1746645325746,0.3329837,600.63,599.4,1.031]
[1746645326347,0.28987318,600.62,599.4,1.031]
[1746645328951,0.3329837,600.63,599.4,1.031]
[1746645329248,0.29003142,600.61,599.4,1.031]
[1746645331551,0.30614874,600.6,599.4,1.031]
[1746645334154,0.30617428,600.59,599.4,2.071]
[1746645336459,0.33301142,600.58,599.4,2.071]
[1746645341556,0.33301142,600.58,599.4,3.029]
[1746645345057,0.30615818,600.57,599.4,3.029]
[1746645346463,0.33301142,600.58,599.4,3.029]
[1746645346758,0.30615679,600.57,599.4,3.029]
[1746645351867,0.33301142,600.58,599.4,3.029]
[1746645352061,0.30616458,600.57,599.4,3.029]
[1746645352968,0.33301142,600.58,599.4,3.029]
[1746645353167,0.33301142,600.58,599.4,3.835]
[1746645353468,0.30615895,600.57,599.4,3.835]
[1746645361774,0.33301142,600.58,599.4,3.835]
[1746645362075,0.30616163,600.57,599.4,3.835]
[1746645366180,0.33301142,600.58,599.4,3.835]
[1746645371281,0.30622025,600.57,599.4,3.835]
[1746645371481,0.33302805,600.55,599.4,3.835]
[1746645372287,0.3062208,600.54,599.4,3.835]
[1746645374780,0.33304469,600.52,599.4,3.835]
[1746645375177,0.3062208,600.51,599.4,3.835]
[1746645375382,0.33305578,600.5,599.4,3.835]
[1746645375883,0.3062208,600.49,599.4,3.835]
[1746645378582,0.33307242,600.47,599.4,3.835]
[1746645378979,0.3062208,600.46,599.4,3.835]
[1746645379180,0.33308906,600.44,599.4,3.835]
[1746645379483,0.3062208,600.43,599.4,3.835]
[1746645380387,0.33310016,600.42,599.4,3.835]
[1746645380585,0.3062208,600.41,599.4,3.835]
[1746645380781,0.33311125,600.4,599.4,3.835]
[1746645387792,1.26433079,600.39,599.4,3.835]
[1746645387993,1.26433079,600.38,599.4,3.835]
[1746645388194,1.26433079,600.37,599.4,3.835]
[1746645388388,2.2732435,600.36,599.4,3.835]
[1746645388592,1.26433079,600.35,599.4,3.835]
[1746645388790,2.2732435,600.34,599.4,3.835]
[1746645388993,1.26433079,600.33,599.4,3.835]
[1746645389188,1.26433079,600.32,599.4,3.835]
[1746645389392,2.272928,600.31,599.4,3.835]
[1746645389592,1.26401529,600.3,599.4,3.835]
[1746645389789,2.27213205,600.29,599.4,3.835]
[1746645390093,2.27213205,600.28,599.4,3.835]
[1746645390289,1.26406814,600.27,599.4,3.835]
[1746645390594,2.27213205,600.26,599.4,3.835]
[1746645390794,1.26406814,600.25,599.4,3.835]
[1746645390994,1.26406814,600.24,599.4,3.835]
[1746645391194,1.26406814,600.23,599.4,3.835]
[1746645391496,1.26406814,600.22,599.4,3.835]
[1746645391688,2.27213205,600.21,599.4,3.835]
[1746645391893,1.26496472,600.2,599.4,3.835]
[1746645392191,1.26496472,600.19,599.4,3.835]
[1746645392401,1.26496472,600.18,599.4,3.835]
[1746645392693,2.27302863,600.17,599.4,3.835]
[1746645392890,2.27302863,600.16,599.4,3.835]
[1746645393092,1.26496472,600.15,599.4,3.835]
[1746645393295,2.27302863,600.14,599.4,3.835]
[1746645393495,2.27279641,600.13,599.4,3.835]
[1746645393700,1.2647325,600.12,599.4,3.835]
[1746645393892,2.27279641,600.11,599.4,3.835]
[1746645394095,2.27279641,600.1,599.4,3.835]
[1746645394297,1.2647325,600.09,599.4,3.835]
[1746645394492,2.27279641,600.08,599.4,3.835]
[1746645394798,2.27279641,600.07,599.4,3.835]
[1746645394997,2.27279641,600.06,599.4,3.835]
[1746645395197,1.264675,600.05,599.4,3.835]
[1746645395398,2.27273891,600.04,599.4,3.835]
[1746645395597,1.264675,600.03,599.4,3.835]
[1746645395894,2.27273891,600.02,599.4,3.835]
[1746645396099,1.264675,600.01,599.4,3.835]
[1746645396298,1.264675,600.0,599.4,3.835]
[1746645396598,1.264675,599.99,599.4,3.835]
[1746645396797,1.264675,599.98,599.4,3.835]
[1746645396995,1.264675,599.97,599.4,3.835]
[1746645397199,1.26258559,599.96,599.4,3.835]
[1746645397499,2.2706495,599.95,599.4,1.764]
[1746645397699,1.26258559,599.94,599.4,1.764]
[1746645397902,1.26258559,599.93,599.4,1.764]
[1746645398200,0.33311125,600.4,599.4,1.764]
[1746645398201,1.00806391,599.92,599.4,1.764]
[1746645398401,2.27131207,599.91,599.4,1.764]
[1746645398594,1.00806391,599.91,599.4,1.764]
[1746645399098,1.26322457,599.9,599.4,1.764]
[1746645399298,1.00806391,599.89,599.4,1.764]
[1746645400001,1.00806391,599.88,599.4,1.764]
[1746645400398,1.00806391,599.87,599.4,1.764]
[1746645400695,1.00806391,599.86,599.4,1.764]
[1746645400994,1.00806391,599.85,599.4,1.764]
[1746645401401,0.33311125,600.4,599.4,1.764]
[1746645401596,1.26205721,600.39,599.4,0.806]
[1746645401799,1.26205721,600.38,599.4,0.806]
[1746645401999,1.26205721,600.37,599.4,0.806]
[1746645402295,1.26205721,600.36,599.4,0.806]
[1746645402499,2.26885591,600.35,599.4,0.806]
[1746645402701,2.60200046,600.34,599.4,0.806]
[1746645402901,1.26205721,600.33,599.4,0.806]
[1746645403200,1.26205721,600.32,599.4,0.806]
[1746645403395,2.26885591,600.31,599.4,0.806]
[1746645403600,1.26205721,600.3,599.4,0.806]
[1746645403800,1.26205721,600.29,599.4,0.806]
[1746645404003,1.26205721,600.28,599.4,0.806]
[1746645404203,1.26205721,600.27,599.4,0.806]
[1746645404401,1.26205721,600.26,599.4,1.953]
[1746645404598,1.26205721,600.25,599.4,1.953]
[1746645404798,1.26205721,600.24,599.4,1.953]
[1746645404995,2.26885591,600.23,599.4,1.953]
[1746645405201,0.33314455,600.34,599.4,1.953]
[1746645405202,2.26885591,600.22,599.4,1.953]
[1746645405496,2.26885591,600.21,599.4,1.953]
[1746645405702,1.26205721,600.2,599.4,1.953]
[1746645405996,2.26885591,600.19,599.4,1.953]
[1746645406201,1.26205721,600.18,599.4,1.953]
[1746645406501,2.26885591,600.17,599.4,1.953]
[1746645406702,1.26205721,600.16,599.4,1.953]
[1746645406902,2.26885591,600.15,599.4,1.953]
[1746645407103,1.26205721,600.14,599.4,1.953]
[1746645407302,2.26885591,600.13,599.4,1.953]
[1746645407501,1.26205721,600.12,599.4,1.953]
[1746645407702,1.26205721,600.11,599.4,1.953]
[1746645407902,2.26885591,600.1,599.4,1.953]
[1746645408101,1.26205721,600.09,599.4,1.953]
[1746645408398,2.26885591,600.08,599.4,1.953]
[1746645408602,1.25986255,600.07,599.4,1.953]
[1746645408803,1.25986255,600.06,599.4,1.953]
[1746645409001,1.25986255,600.05,599.4,1.953]
[1746645409199,1.25986255,600.04,599.4,1.953]
[1746645409402,2.26666125,600.03,599.4,1.953]
[1746645409601,2.26666125,600.02,599.4,1.953]
[1746645409798,1.25986255,600.01,599.4,1.953]
[1746645410098,2.26666125,600.0,599.4,1.953]
[1746645410298,1.25986255,599.99,599.4,1.953]
[1746645410499,2.26666125,599.98,599.4,1.953]
[1746645410802,1.25986255,599.97,599.4,1.953]
[1746645411102,2.26666125,599.96,599.4,1.953]
[1746645411304,1.25986255,599.95,599.4,1.953]
[1746645411499,1.25986255,599.94,599.4,1.147]
[1746645411702,1.25986255,599.93,599.4,1.147]
[1746645411905,1.25986255,599.92,599.4,1.147]
[1746645412102,2.26666125,599.91,599.4,1.147]
[1746645412402,1.25986255,599.9,599.4,1.147]
[1746645412602,2.26666125,599.89,599.4,1.147]
[1746645412803,1.25986255,599.88,599.4,1.147]
[1746645413005,1.25986255,599.87,599.4,1.147]
[1746645413206,1.25986255,599.86,599.4,1.147]
[1746645413408,1.25986255,599.85,599.4,1.147]
[1746645413601,1.25986255,599.84,599.4,1.147]
[1746645413806,1.25986255,599.83,599.4,1.147]
[1746645414005,1.0067987,599.82,599.4,1.147]
[1746645414503,1.0067987,599.81,599.4,1.147]
[1746645414908,1.0067987,599.8,599.4,1.147]
[1746645415503,1.0067987,599.79,599.4,1.147]
[1746645416103,1.0067987,599.78,599.4,1.147]
[1746645416406,1.0067987,599.77,599.4,1.147]
[1746645417009,1.0067987,599.76,599.4,1.147]
[1746645417410,0.33314455,600.34,599.4,1.147]
[1746645417612,1.25522386,600.33,599.4,1.147]
[1746645417911,0.29003142,600.61,599.4,1.147]
[1746645417912,2.59128536,600.32,599.4,1.147]
[1746645418111,1.58838506,600.31,599.4,1.147]
[1746645418304,1.25522386,600.3,599.4,1.147]
[1746645418508,1.25522386,600.29,599.4,1.147]
[1746645418705,1.25522386,600.28,599.4,1.147]
[1746645419005,1.25522386,600.27,599.4,1.147]
[1746645419310,2.25812971,600.26,599.4,1.147]
[1746645419608,2.25812971,600.25,599.4,1.147]
[1746645419804,1.25522386,600.24,599.4,1.147]
[1746645420009,2.25812971,600.23,599.4,1.147]
[1746645420206,1.25522386,600.22,599.4,1.147]
[1746645420405,1.25522386,600.21,599.4,1.147]
[1746645420610,1.58844611,600.2,599.4,1.147]
[1746645420812,2.59135752,600.19,599.4,1.147]
[1746645421110,1.25522386,600.18,599.4,1.147]
[1746645421311,1.25522386,600.17,599.4,1.147]
[1746645421507,2.25812971,600.16,599.4,1.147]
[1746645421711,2.25812971,600.15,599.4,1.147]
[1746645421912,1.25522386,600.14,599.4,1.977]
[1746645422115,1.25522386,600.13,599.4,1.977]
[1746645422314,2.25812971,600.12,599.4,1.977]
[1746645422610,1.25522386,600.11,599.4,1.977]
[1746645422813,1.25522386,600.1,599.4,1.977]
[1746645423113,2.25613349,600.09,599.4,1.977]
[1746645423313,1.25322764,600.08,599.4,0.83]
[1746645423513,2.25613349,600.07,599.4,0.83]
[1746645423712,1.25322764,600.06,599.4,0.83]
[1746645423912,2.25613349,600.05,599.4,0.83]
[1746645424108,1.25322764,600.04,599.4,0.83]
[1746645424313,2.25613349,600.03,599.4,0.83]
[1746645424616,2.25613349,600.02,599.4,0.83]
[1746645424814,1.25322764,600.01,599.4,0.83]
[1746645425012,2.25613349,600.0,599.4,0.83]
[1746645425207,0.33322781,600.19,599.4,0.83]
[1746645425208,2.25613349,599.99,599.4,0.83]
[1746645425411,1.25322764,599.98,599.4,0.83]
[1746645425610,1.00290585,599.99,599.4,0.83]
[1746645425913,1.25323319,599.98,599.4,0.83]
[1746645426213,1.25323319,599.97,599.4,0.83]
[1746645426414,1.00290585,599.99,599.4,0.83]
[1746645426611,1.25505983,599.98,598.77,1.06212447]
[1746645426813,1.25505983,599.97,598.77,1.06212447]
[1746645427015,2.25796568,599.96,598.77,1.06212447]
[1746645427211,1.25505983,599.95,598.77,1.06212447]
[1746645427409,1.25505983,599.94,598.78,0.33401249]
[1746645427615,1.25423215,599.93,598.78,0.33401249]
[1746645427815,1.25423215,599.92,598.78,0.33401249]
[1746645428111,2.257138,599.91,598.78,0.33401249]
[1746645428312,2.257138,599.9,598.78,0.33401249]
[1746645428511,1.25502051,599.89,598.78,0.33401249]
[1746645428817,2.25792636,599.88,598.78,0.33401249]
[1746645429017,1.00290585,599.88,598.78,0.33401249]
[1746645429414,0.33322781,600.19,598.78,0.33401249]
[1746645429920,2.25634456,600.18,598.78,0.33401249]
[1746645430119,1.25470753,600.17,598.78,0.33401249]
[1746645430315,2.25634456,600.16,598.78,0.33401249]
[1746645430518,1.25470753,600.15,598.78,0.33401249]
[1746645430718,1.25470753,600.14,598.78,0.33401249]
[1746645430919,2.25634456,600.13,598.78,0.33401249]
[1746645431118,1.25468201,600.12,598.78,0.33401249]
[1746645431313,2.25631904,600.11,598.78,0.33401249]
[1746645431517,1.25468201,600.1,598.78,0.33401249]
[1746645431721,1.25468201,600.09,598.78,0.33401249]
[1746645431922,2.25631904,600.08,598.78,0.33401249]
[1746645432122,1.25468201,600.07,598.78,0.33401249]
[1746645432417,1.25468201,600.06,598.78,0.33401249]
[1746645432621,1.25468201,600.05,598.78,0.33401249]
[1746645432821,2.25631904,600.04,598.78,0.33401249]
[1746645433121,1.25198273,600.03,598.78,0.33401249]
[1746645433320,1.25198273,600.02,598.78,0.33401249]
[1746645433520,1.25198273,600.01,598.78,0.33401249]
[1746645433821,1.25198273,600.0,598.78,0.33401249]
[1746645434120,1.00163703,600.01,598.78,0.33401249]
[1746645434121,1.25198273,599.99,598.78,0.33401249]
[1746645434316,2.25361976,599.98,598.78,0.33401249]
[1746645434517,1.25198273,599.97,598.78,0.33401249]
[1746645434717,1.25198273,599.96,598.78,0.33401249]
[1746645434916,1.25308778,599.95,598.78,0.33401249]
[1746645435120,1.25308778,599.94,598.78,0.33401249]
[1746645435324,1.25308778,599.93,598.78,0.33401249]
[1746645435518,2.25472481,599.92,598.78,0.33401249]
[1746645435723,2.25472481,599.91,598.78,0.33401249]
[1746645436022,1.25308778,599.9,598.78,0.33401249]
[1746645436221,2.25472481,599.89,598.78,0.33401249]
[1746645436424,1.25308778,599.88,598.78,0.33401249]
[1746645436623,1.25308778,599.87,598.78,0.33401249]
[1746645436824,2.25358958,599.86,598.78,0.33401249]
[1746645437123,2.25358958,599.85,598.78,0.33401249]
[1746645437324,1.0005018,599.84,598.78,0.33401249]
[1746645438024,1.0005018,599.83,598.78,0.33401249]
[1746645438428,1.0005018,599.82,598.78,0.33401249]
[1746645439020,0.33322781,600.19,598.78,0.33401249]
[1746645439219,2.25071307,600.18,598.78,0.33401249]
[1746645439523,1.25128829,600.17,598.78,0.33401249]
[1746645439821,2.25071307,600.16,598.78,0.33401249]
[1746645440025,2.25071307,600.15,598.78,0.33401249]
[1746645440221,1.25128829,600.14,598.78,0.33401249]
[1746645440520,1.25128829,600.13,598.78,0.33401249]
[1746645440726,1.25128829,600.12,598.78,0.33401249]
[1746645440927,1.25128829,600.11,598.78,0.33401249]
[1746645441225,2.25071307,600.1,598.78,0.33401249]
[1746645441426,1.25128829,600.09,598.78,0.33401249]
[1746645441724,2.25071307,600.08,598.78,0.33401249]
[1746645441923,1.25128829,600.07,598.78,0.33401249]
[1746645442225,2.25071307,600.06,598.78,0.33401249]
[1746645442425,1.25128829,600.05,598.78,0.33401249]
[1746645442627,1.25128829,600.04,598.78,0.33401249]
[1746645442828,1.25128829,600.03,598.78,0.33401249]
[1746645443125,2.25071307,600.02,598.78,0.33401249]
[1746645443425,1.25128829,600.01,598.78,0.33401249]
[1746645443622,1.25128829,600.0,598.78,0.33401249]
[1746645443826,1.25128829,599.99,598.78,0.33401249]
[1746645444027,2.25071307,599.98,598.78,0.33401249]
[1746645444327,1.2525277,599.97,598.78,0.33401249]
[1746645444523,2.25195248,599.96,598.78,0.33401249]
[1746645444723,1.2525277,599.95,598.78,0.33401249]
[1746645445027,2.25195248,599.94,598.78,0.33401249]
[1746645445228,1.2525277,599.93,598.78,0.33401249]
[1746645445431,0.99942478,599.94,598.78,0.33401249]
[1746645445631,0.99942478,599.93,598.78,0.33401249]
[1746645445934,0.99942478,599.92,598.78,0.33401249]
[1746645446137,0.99942478,599.91,598.78,0.33401249]
[1746645446333,0.99942478,599.9,598.78,0.33401249]
[1746645446534,0.33322781,600.19,598.78,0.33401249]
[1746645446734,1.25264618,600.18,598.78,0.33401249]
[1746645446935,2.25300455,600.17,598.78,0.33401249]
[1746645447130,1.25264618,600.16,598.78,0.33401249]
[1746645447335,1.25264618,600.15,598.78,0.33401249]
[1746645447636,2.25300455,600.14,598.78,0.33401249]
[1746645447932,1.25264618,600.13,598.78,0.33401249]
[1746645448130,1.25264618,600.12,598.78,0.33401249]
[1746645448334,2.25300455,600.11,598.78,0.33401249]
[1746645448629,1.25264618,600.1,598.78,0.33401249]
[1746645448931,1.25264618,600.09,598.78,0.33401249]
[1746645449133,1.25264618,600.08,598.78,0.33401249]
[1746645449334,2.25300455,600.07,598.78,0.33401249]
[1746645449631,1.25264618,600.06,598.78,0.33401249]
[1746645449830,2.25300455,600.05,598.78,0.33401249]
[1746645450032,1.25264618,600.04,598.78,0.33401249]
[1746645450234,2.25300455,600.03,598.78,0.33401249]
[1746645450434,1.25264618,600.02,598.78,0.33401249]
[1746645450632,1.25264618,600.01,598.78,0.33401249]